[Event "Live Chess"]
[Site "Chess.com"]
[Date "2023.05.21"]
[Round "-"]
[White "mikkyb4"]
[Black "Shepherds_Pie"]
[Result "0-1"]
[WhiteElo "1037"]
[BlackElo "1926"]
[TimeControl "300"]
[EndTime "16:53:39 PDT"]
[Termination "Shepherds_Pie won by resignation"]

1. e4 {[%clk 0:04:58.1]} 1... e6 {[%clk 0:04:54.7]} 2. b3 {[%clk 0:04:52]} 2...
d5 {[%clk 0:04:53.1]} 3. Bb2 {[%clk 0:04:49.8]} 3... d4 {[%clk 0:04:51.1]} 4.
Nf3 {[%clk 0:04:44.9]} 4... c5 {[%clk 0:04:49.9]} 5. d3 {[%clk 0:04:35.7]} 5...
Nc6 {[%clk 0:04:48.7]} 6. Nbd2 {[%clk 0:04:31.4]} 6... Nf6 {[%clk 0:04:46.6]} 7.
e5 {[%clk 0:04:27.6]} 7... Nd7 {[%clk 0:04:45.1]} 8. Nc4 {[%clk 0:04:26.2]} 8...
b5 {[%clk 0:04:42.7]} 9. Ncd2 {[%clk 0:04:19.7]} 9... Ndxe5 {[%clk 0:04:40.3]}
10. Be2 {[%clk 0:04:17.3]} 10... Bd6 {[%clk 0:04:38.4]} 11. O-O {[%clk
0:04:14.8]} 11... Bb7 {[%clk 0:04:37.3]} 12. Ne4 {[%clk 0:04:05.5]} 12... O-O
{[%clk 0:04:34.8]} 13. Bc1 {[%clk 0:03:49]} 13... Be7 {[%clk 0:04:30]} 14. Bg5
{[%clk 0:03:36.4]} 14... f6 {[%clk 0:04:28.1]} 15. Bf4 {[%clk 0:03:28.4]} 15...
Nxf3+ {[%clk 0:04:25.7]} 16. Bxf3 {[%clk 0:03:26.4]} 16... e5 {[%clk 0:04:24.3]}
17. Bg3 {[%clk 0:03:15.3]} 17... Qd7 {[%clk 0:04:19.8]} 18. Bh5 {[%clk
0:02:51.5]} 18... f5 {[%clk 0:04:16.7]} 19. Nd2 {[%clk 0:02:42.2]} 19... f4
{[%clk 0:04:15.5]} 20. Ne4 {[%clk 0:02:29.7]} 20... fxg3 {[%clk 0:04:13.6]} 21.
fxg3 {[%clk 0:02:27.2]} 21... Rxf1+ {[%clk 0:04:11.5]} 22. Qxf1 {[%clk 0:02:26]}
22... Rf8 {[%clk 0:04:11.3]} 23. Qe2 {[%clk 0:02:24.9]} 23... Nd8 {[%clk
0:04:06.2]} 24. Bg4 {[%clk 0:02:22.7]} 24... Qc6 {[%clk 0:04:01.6]} 25. Bh3
{[%clk 0:02:10.5]} 25... c4 {[%clk 0:03:58]} 26. bxc4 {[%clk 0:02:07.2]} 26...
bxc4 {[%clk 0:03:56.8]} 27. Qh5 {[%clk 0:01:58.1]} 27... Bf6 {[%clk 0:03:47.2]}
28. Rf1 {[%clk 0:01:37.1]} 28... cxd3 {[%clk 0:03:44.2]} 29. cxd3 {[%clk
0:01:35.2]} 29... Ba6 {[%clk 0:03:38.4]} 30. Ng5 {[%clk 0:01:21.9]} 30... h6
{[%clk 0:03:31.5]} 31. Ne4 {[%clk 0:01:09.6]} 31... Bxd3 {[%clk 0:03:28]} 32.
Bf5 {[%clk 0:01:08.4]} 32... Bxe4 {[%clk 0:03:23.9]} 33. Qg6 {[%clk 0:01:06.4]}
33... Bxf5 {[%clk 0:03:22.2]} 34. Qxf5 {[%clk 0:01:05.4]} 34... Be7 {[%clk
0:03:18.2]} 0-1

[Event "Live Chess"]
[Site "Chess.com"]
[Date "2023.05.21"]
[Round "-"]
[White "Conradical12"]
[Black "LodeshChess"]
[Result "1-0"]
[WhiteElo "1584"]
[BlackElo "1134"]
[TimeControl "300"]
[EndTime "16:53:46 PDT"]
[Termination "Conradical12 won by checkmate"]

1. e4 {[%clk 0:04:57.8]} 1... c6 {[%clk 0:04:58.9]} 2. Nf3 {[%clk 0:04:56.6]}
2... d5 {[%clk 0:04:58.3]} 3. exd5 {[%clk 0:04:54.5]} 3... cxd5 {[%clk
0:04:57.7]} 4. d4 {[%clk 0:04:53.4]} 4... Bg4 {[%clk 0:04:57.2]} 5. c4 {[%clk
0:04:52.7]} 5... Nf6 {[%clk 0:04:53.4]} 6. Nc3 {[%clk 0:04:51.4]} 6... e6 {[%clk
0:04:51.6]} 7. Bg5 {[%clk 0:04:49.4]} 7... Be7 {[%clk 0:04:47]} 8. Be2 {[%clk
0:04:47.9]} 8... Bxf3 {[%clk 0:04:41.8]} 9. Bxf3 {[%clk 0:04:46.5]} 9... dxc4
{[%clk 0:04:41.2]} 10. Bxb7 {[%clk 0:04:41.9]} 10... Nbd7 {[%clk 0:04:33.3]} 11.
Bxa8 {[%clk 0:04:40.9]} 11... Qxa8 {[%clk 0:04:33]} 12. Bxf6 {[%clk 0:04:39.7]}
12... Bxf6 {[%clk 0:04:29.3]} 13. O-O {[%clk 0:04:39.6]} 13... O-O {[%clk
0:04:22.3]} 14. d5 {[%clk 0:04:39]} 14... exd5 {[%clk 0:04:18.7]} 15. Nxd5
{[%clk 0:04:38.5]} 15... Bxb2 {[%clk 0:04:13.9]} 16. Rb1 {[%clk 0:04:36.5]}
16... Be5 {[%clk 0:04:08.2]} 17. Ne7+ {[%clk 0:04:34.8]} 17... Kh8 {[%clk
0:04:06.1]} 18. Qxd7 {[%clk 0:04:34.7]} 18... Rd8 {[%clk 0:03:52.8]} 19. Qf5
{[%clk 0:04:30]} 19... f6 {[%clk 0:03:42.5]} 20. Rbe1 {[%clk 0:04:23.4]} 20...
Qb8 {[%clk 0:03:38.9]} 21. Re3 {[%clk 0:04:21.4]} 21... Bxh2+ {[%clk 0:03:37]}
22. Kh1 {[%clk 0:04:19.5]} 22... Bf4 {[%clk 0:03:32.5]} 23. Rh3 {[%clk
0:04:12.2]} 23... Bh6 {[%clk 0:03:20.8]} 24. Rxh6 {[%clk 0:04:10.4]} 24... gxh6
{[%clk 0:03:20.1]} 25. Qxf6# {[%clk 0:04:10.3]} 1-0

[Event "Live Chess"]
[Site "Chess.com"]
[Date "2023.05.21"]
[Round "-"]
[White "NAZRIZ1977"]
[Black "AlanPaling"]
[Result "1-0"]
[WhiteElo "2033"]
[BlackElo "1383"]
[TimeControl "300"]
[EndTime "16:54:19 PDT"]
[Termination "NAZRIZ1977 won by resignation"]

1. d4 {[%clk 0:04:58.5]} 1... e5 {[%clk 0:04:58.5]} 2. e4 {[%clk 0:04:57]} 2...
exd4 {[%clk 0:04:57.1]} 3. c3 {[%clk 0:04:55.9]} 3... dxc3 {[%clk 0:04:55.3]} 4.
Bc4 {[%clk 0:04:54.8]} 4... Nc6 {[%clk 0:04:48.1]} 5. Nf3 {[%clk 0:04:50.3]}
5... a6 {[%clk 0:04:42.9]} 6. O-O {[%clk 0:04:46.6]} 6... Nf6 {[%clk 0:04:38.6]}
7. Ng5 {[%clk 0:04:43.6]} 7... Ne5 {[%clk 0:04:33.2]} 8. Bb3 {[%clk 0:04:42]}
8... h6 {[%clk 0:04:30.1]} 9. f4 {[%clk 0:04:37.2]} 9... d5 {[%clk 0:03:53.5]}
10. fxe5 {[%clk 0:04:34.4]} 10... hxg5 {[%clk 0:03:50.1]} 11. exf6 {[%clk
0:04:32.6]} 11... Bc5+ {[%clk 0:03:46.2]} 12. Kh1 {[%clk 0:04:27.9]} 12... O-O
{[%clk 0:03:43.1]} 13. fxg7 {[%clk 0:04:21.6]} 13... dxe4 {[%clk 0:03:40.2]} 14.
gxf8=Q+ {[%clk 0:04:19.8]} 1-0

[Event "Live Chess"]
[Site "Chess.com"]
[Date "2023.05.21"]
[Round "-"]
[White "ClassyChameleon"]
[Black "Cimon"]
[Result "0-1"]
[WhiteElo "1072"]
[BlackElo "1874"]
[TimeControl "300"]
[EndTime "16:54:29 PDT"]
[Termination "Cimon won by resignation"]

1. e4 {[%clk 0:04:58.3]} 1... c5 {[%clk 0:04:57.3]} 2. Nc3 {[%clk 0:04:56.7]}
2... Nc6 {[%clk 0:04:55.8]} 3. Bc4 {[%clk 0:04:55.8]} 3... e6 {[%clk 0:04:54.1]}
4. d3 {[%clk 0:04:55.2]} 4... d6 {[%clk 0:04:52.8]} 5. Nf3 {[%clk 0:04:54.4]}
5... Nf6 {[%clk 0:04:51.5]} 6. O-O {[%clk 0:04:50.8]} 6... Be7 {[%clk
0:04:50.1]} 7. Bg5 {[%clk 0:04:45]} 7... O-O {[%clk 0:04:48.3]} 8. d4 {[%clk
0:04:32.7]} 8... a6 {[%clk 0:04:40.7]} 9. dxc5 {[%clk 0:04:24.2]} 9... dxc5
{[%clk 0:04:39.2]} 10. Qxd8 {[%clk 0:04:22.8]} 10... Rxd8 {[%clk 0:04:37.4]} 11.
e5 {[%clk 0:04:19.4]} 11... Nd5 {[%clk 0:04:34.6]} 12. Bxd5 {[%clk 0:04:16.4]}
12... exd5 {[%clk 0:04:32.6]} 13. Bxe7 {[%clk 0:04:13.6]} 13... Nxe7 {[%clk
0:04:31.1]} 14. Rad1 {[%clk 0:04:02.4]} 14... Bg4 {[%clk 0:04:15.1]} 15. Rd3
{[%clk 0:03:46.1]} 15... b5 {[%clk 0:04:04]} 16. a4 {[%clk 0:03:39.7]} 16... b4
{[%clk 0:04:00.9]} 17. Na2 {[%clk 0:03:36.9]} 17... a5 {[%clk 0:03:55]} 18. b3
{[%clk 0:03:33.5]} 18... h6 {[%clk 0:03:45.8]} 19. Nh4 {[%clk 0:03:24.2]} 19...
Be2 {[%clk 0:03:38.6]} 20. Nf5 {[%clk 0:03:14.6]} 20... Nxf5 {[%clk 0:03:35.8]}
21. Nc1 {[%clk 0:03:12.5]} 21... Bxf1 {[%clk 0:03:33.5]} 22. Kxf1 {[%clk
0:03:11.1]} 22... c4 {[%clk 0:03:29.8]} 23. bxc4 {[%clk 0:03:09.1]} 23... dxc4
{[%clk 0:03:28.5]} 24. Rf3 {[%clk 0:03:07.3]} 24... g6 {[%clk 0:03:23.8]} 25. h3
{[%clk 0:02:59]} 25... Rd1+ {[%clk 0:03:21.5]} 26. Ke2 {[%clk 0:02:54.3]} 26...
Rxc1 {[%clk 0:03:19.5]} 27. g4 {[%clk 0:02:52.1]} 27... Nd4+ {[%clk 0:03:17.4]}
0-1

[Event "Live Chess"]
[Site "Chess.com"]
[Date "2023.05.21"]
[Round "-"]
[White "domrobson"]
[Black "Long1968"]
[Result "1-0"]
[WhiteElo "1784"]
[BlackElo "1130"]
[TimeControl "300"]
[EndTime "16:54:34 PDT"]
[Termination "domrobson won on time"]

1. d4 {[%clk 0:04:58.6]} 1... e6 {[%clk 0:04:57.3]} 2. c4 {[%clk 0:04:57]} 2...
d5 {[%clk 0:04:54.2]} 3. Nf3 {[%clk 0:04:55.9]} 3... Nf6 {[%clk 0:04:50.3]} 4.
Nc3 {[%clk 0:04:55.1]} 4... Bb4 {[%clk 0:04:43.4]} 5. Bg5 {[%clk 0:04:53.6]}
5... O-O {[%clk 0:04:39.1]} 6. e3 {[%clk 0:04:52.8]} 6... Nbd7 {[%clk
0:04:35.3]} 7. Rc1 {[%clk 0:04:49.3]} 7... c6 {[%clk 0:04:29.8]} 8. a3 {[%clk
0:04:48.1]} 8... Bd6 {[%clk 0:04:22]} 9. e4 {[%clk 0:04:44.4]} 9... dxe4 {[%clk
0:03:55.8]} 10. Nxe4 {[%clk 0:04:41.4]} 10... Be7 {[%clk 0:03:53.1]} 11. Bd3
{[%clk 0:04:39.4]} 11... Nxe4 {[%clk 0:03:46.9]} 12. Bxe7 {[%clk 0:04:37.1]}
12... Qxe7 {[%clk 0:03:41.8]} 13. Bxe4 {[%clk 0:04:35.9]} 13... Nf6 {[%clk
0:03:38.5]} 14. Bb1 {[%clk 0:04:32.7]} 14... b6 {[%clk 0:03:24.3]} 15. O-O
{[%clk 0:04:31.1]} 15... Bb7 {[%clk 0:03:20.3]} 16. Re1 {[%clk 0:04:29.8]} 16...
Rad8 {[%clk 0:03:08.9]} 17. Qc2 {[%clk 0:04:23.3]} 17... g6 {[%clk 0:02:59.5]}
18. c5 {[%clk 0:04:21.7]} 18... Rd5 {[%clk 0:02:23.6]} 19. b4 {[%clk 0:04:18.2]}
19... Rh5 {[%clk 0:02:07.5]} 20. Ne5 {[%clk 0:04:10]} 20... Nd5 {[%clk 0:01:40]}
21. g4 {[%clk 0:04:05.9]} 21... Qg5 {[%clk 0:01:19.8]} 22. Kh1 {[%clk
0:04:03.1]} 22... Rh3 {[%clk 0:00:53.1]} 23. f3 {[%clk 0:03:58.2]} 23... Qh6
{[%clk 0:00:32.4]} 24. Qg2 {[%clk 0:03:49.3]} 24... Nf4 {[%clk 0:00:19.4]} 25.
Qd2 {[%clk 0:03:47.7]} 25... f6 {[%clk 0:00:10.3]} 26. Nd3 {[%clk 0:03:40.8]}
26... Rxf3 {[%clk 0:00:06.5]} 27. Nxf4 {[%clk 0:03:38.2]} 27... Qxf4 {[%clk
0:00:02.5]} 28. Qxf4 {[%clk 0:03:37.1]} 28... Rxf4 {[%clk 0:00:00.3]} 29. Rxe6
{[%clk 0:03:36.6]} 1-0

[Event "Live Chess"]
[Site "Chess.com"]
[Date "2023.05.21"]
[Round "-"]
[White "therealab0ne"]
[Black "LiamClery2020"]
[Result "0-1"]
[WhiteElo "708"]
[BlackElo "2043"]
[TimeControl "300"]
[EndTime "16:55:09 PDT"]
[Termination "LiamClery2020 won by resignation"]

1. e4 {[%clk 0:04:57.9]} 1... Nf6 {[%clk 0:04:59.9]} 2. e5 {[%clk 0:04:56]} 2...
Nd5 {[%clk 0:04:56.2]} 3. Nf3 {[%clk 0:04:52.1]} 3... d6 {[%clk 0:04:54.9]} 4.
Bc4 {[%clk 0:04:40.9]} 4... Nb6 {[%clk 0:04:52.8]} 5. d3 {[%clk 0:04:32.4]} 5...
Nxc4 {[%clk 0:04:51.6]} 6. dxc4 {[%clk 0:04:30.8]} 6... Nc6 {[%clk 0:04:51.5]}
7. exd6 {[%clk 0:04:18.9]} 7... cxd6 {[%clk 0:04:49.9]} 8. O-O {[%clk 0:04:07]}
8... Bg4 {[%clk 0:04:45.5]} 9. Nc3 {[%clk 0:03:58.6]} 9... Ne5 {[%clk
0:04:43.2]} 10. Kh1 {[%clk 0:03:29.9]} 10... Qd7 {[%clk 0:04:37.3]} 11. Nb1
{[%clk 0:03:27.6]} 11... Bxf3 {[%clk 0:04:36.4]} 12. gxf3 {[%clk 0:03:25.3]}
12... Qh3 {[%clk 0:04:36]} 13. Bf4 {[%clk 0:03:13.7]} 13... Nxf3 {[%clk
0:04:29.8]} 14. Nd2 {[%clk 0:03:01.1]} 14... Nh4 {[%clk 0:04:28.6]} 15. Rg1
{[%clk 0:02:50.5]} 15... e5 {[%clk 0:04:24.4]} 16. Bg3 {[%clk 0:02:47.1]} 16...
Nf5 {[%clk 0:04:19.3]} 17. Qf1 {[%clk 0:02:11.6]} 17... Qxf1 {[%clk 0:04:16.8]}
18. Raxf1 {[%clk 0:02:05.7]} 18... Nxg3+ {[%clk 0:04:16.7]} 19. Rxg3 {[%clk
0:02:04.7]} 19... g6 {[%clk 0:04:14.2]} 20. b4 {[%clk 0:01:44.1]} 20... Bg7
{[%clk 0:04:11.9]} 21. Ne4 {[%clk 0:01:42.7]} 21... Rd8 {[%clk 0:04:05.1]} 22.
Rd3 {[%clk 0:01:34.4]} 22... Ke7 {[%clk 0:04:03]} 23. Rfd1 {[%clk 0:01:26.2]}
23... f5 {[%clk 0:03:52.1]} 24. Rxd6 {[%clk 0:01:04.8]} 24... fxe4 {[%clk
0:03:47.6]} 25. Rxd8 {[%clk 0:01:02.2]} 25... Rxd8 {[%clk 0:03:46.6]} 26. Rd5
{[%clk 0:00:42.7]} 26... Rxd5 {[%clk 0:03:45.6]} 27. cxd5 {[%clk 0:00:41.8]}
27... Kd6 {[%clk 0:03:45.5]} 28. c4 {[%clk 0:00:41]} 28... b5 {[%clk 0:03:44.5]}
29. cxb5 {[%clk 0:00:31.5]} 29... Kxd5 {[%clk 0:03:43.4]} 30. Kg2 {[%clk
0:00:27.1]} 30... Kc4 {[%clk 0:03:41.9]} 31. a3 {[%clk 0:00:24.6]} 31... Kb3
{[%clk 0:03:40.4]} 0-1

[Event "Live Chess"]
[Site "Chess.com"]
[Date "2023.05.21"]
[Round "-"]
[White "1600x"]
[Black "DaveL5678"]
[Result "1-0"]
[WhiteElo "1828"]
[BlackElo "1009"]
[TimeControl "300"]
[EndTime "16:55:17 PDT"]
[Termination "1600x won by checkmate"]

1. e4 {[%clk 0:04:50.6]} 1... c6 {[%clk 0:04:57.6]} 2. d4 {[%clk 0:04:39.7]}
2... d5 {[%clk 0:04:54.4]} 3. e5 {[%clk 0:04:37.6]} 3... Bf5 {[%clk 0:04:51.6]}
4. Be2 {[%clk 0:04:34.6]} 4... e6 {[%clk 0:04:49.9]} 5. Nc3 {[%clk 0:04:32.8]}
5... c5 {[%clk 0:04:45]} 6. Nf3 {[%clk 0:04:31.2]} 6... cxd4 {[%clk 0:04:40.4]}
7. Bg5 {[%clk 0:04:29.3]} 7... Qb6 {[%clk 0:04:32.7]} 8. Nxd4 {[%clk 0:04:27]}
8... Bc5 {[%clk 0:04:24.1]} 9. Nxf5 {[%clk 0:04:25.7]} 9... Bxf2+ {[%clk
0:04:19.3]} 10. Kf1 {[%clk 0:04:21.6]} 10... exf5 {[%clk 0:04:05.3]} 11. Nxd5
{[%clk 0:04:20.4]} 11... Qd4 {[%clk 0:03:53.1]} 12. Nc7+ {[%clk 0:04:18.3]}
12... Kd7 {[%clk 0:03:41.9]} 13. Nb5 {[%clk 0:04:16.5]} 13... Qxd1+ {[%clk
0:03:27.5]} 14. Rxd1+ {[%clk 0:04:14]} 14... Kc6 {[%clk 0:03:19.9]} 15. Rd6+
{[%clk 0:04:11.6]} 15... Kc5 {[%clk 0:03:10.3]} 16. Nc3 {[%clk 0:04:06.7]} 16...
Bd4 {[%clk 0:03:04.6]} 17. Na4+ {[%clk 0:04:04.8]} 17... Kb4 {[%clk 0:02:58.3]}
18. Rxd4+ {[%clk 0:04:03.3]} 18... Ka5 {[%clk 0:02:55.7]} 19. Bd2# {[%clk
0:04:00.3]} 1-0

[Event "Live Chess"]
[Site "Chess.com"]
[Date "2023.05.21"]
[Round "-"]
[White "GEMdzq"]
[Black "WelshTiger"]
[Result "1/2-1/2"]
[WhiteElo "2234"]
[BlackElo "2358"]
[TimeControl "300"]
[EndTime "16:55:22 PDT"]
[Termination "Game drawn by repetition"]

1. e4 {[%clk 0:04:56.8]} 1... c5 {[%clk 0:04:57.7]} 2. d4 {[%clk 0:04:55.3]}
2... cxd4 {[%clk 0:04:56.1]} 3. c3 {[%clk 0:04:54.8]} 3... Nf6 {[%clk
0:04:54.2]} 4. e5 {[%clk 0:04:53.5]} 4... Nd5 {[%clk 0:04:53.6]} 5. Qxd4 {[%clk
0:04:52.4]} 5... e6 {[%clk 0:04:52.9]} 6. Nf3 {[%clk 0:04:51.1]} 6... Nc6 {[%clk
0:04:52.2]} 7. Qe4 {[%clk 0:04:49.6]} 7... f5 {[%clk 0:04:49.2]} 8. exf6 {[%clk
0:04:48.5]} 8... Nxf6 {[%clk 0:04:48.2]} 9. Qh4 {[%clk 0:04:48.1]} 9... Be7
{[%clk 0:04:46.9]} 10. Bd3 {[%clk 0:04:44.7]} 10... O-O {[%clk 0:04:34]} 11. Bg5
{[%clk 0:04:33.8]} 11... g6 {[%clk 0:04:32.5]} 12. O-O {[%clk 0:04:28.5]} 12...
Nd5 {[%clk 0:04:27.6]} 13. Re1 {[%clk 0:04:13.4]} 13... Rxf3 {[%clk 0:04:24.4]}
14. Bxe7 {[%clk 0:04:09.6]} 14... Ncxe7 {[%clk 0:04:10.4]} 15. gxf3 {[%clk
0:04:06.9]} 15... Qf8 {[%clk 0:04:09.6]} 16. Nd2 {[%clk 0:04:04.8]} 16... Nf4
{[%clk 0:04:00.9]} 17. Bf1 {[%clk 0:04:00.1]} 17... d5 {[%clk 0:03:54.3]} 18. c4
{[%clk 0:03:58.7]} 18... Bd7 {[%clk 0:03:50]} 19. Re5 {[%clk 0:03:19.3]} 19...
Nc6 {[%clk 0:03:19.7]} 20. Rg5 {[%clk 0:03:14.7]} 20... Nd4 {[%clk 0:03:11.8]}
21. Re1 {[%clk 0:03:02.6]} 21... Re8 {[%clk 0:03:10.2]} 22. Ree5 {[%clk
0:03:01.1]} 22... Nc6 {[%clk 0:03:00.1]} 23. Re3 {[%clk 0:02:59.5]} 23... d4
{[%clk 0:02:54.2]} 24. Re4 {[%clk 0:02:54.4]} 24... e5 {[%clk 0:02:53]} 25. c5
{[%clk 0:02:49.1]} 25... Bf5 {[%clk 0:02:50.7]} 26. Rxf4 {[%clk 0:02:40.9]}
26... exf4 {[%clk 0:02:49.3]} 27. Qxf4 {[%clk 0:02:40.4]} 27... Qxc5 {[%clk
0:02:36.7]} 28. h4 {[%clk 0:02:32.7]} 28... Qe5 {[%clk 0:02:33.7]} 29. Qxe5
{[%clk 0:02:28]} 29... Nxe5 {[%clk 0:02:32.3]} 30. h5 {[%clk 0:02:19.1]} 30...
Kg7 {[%clk 0:02:28.9]} 31. hxg6 {[%clk 0:02:17.1]} 31... hxg6 {[%clk 0:02:27.9]}
32. Rg3 {[%clk 0:02:14.2]} 32... Rc8 {[%clk 0:02:25.1]} 33. f4 {[%clk
0:02:12.2]} 33... Nd7 {[%clk 0:02:08.1]} 34. Ra3 {[%clk 0:02:01.9]} 34... a6
{[%clk 0:02:05]} 35. Ra4 {[%clk 0:01:59.8]} 35... d3 {[%clk 0:02:01.6]} 36. Rd4
{[%clk 0:01:44.2]} 36... Nc5 {[%clk 0:02:00.8]} 37. b4 {[%clk 0:01:41.1]} 37...
Ne6 {[%clk 0:01:59.9]} 38. Rd7+ {[%clk 0:01:39.9]} 38... Kf6 {[%clk 0:01:59.3]}
39. Bxd3 {[%clk 0:01:37.8]} 39... Rc1+ {[%clk 0:01:45.5]} 40. Kh2 {[%clk
0:01:29.5]} 40... Nxf4 {[%clk 0:01:37.1]} 41. Bxf5 {[%clk 0:01:25.7]} 41... Kxf5
{[%clk 0:01:37]} 42. Rf7+ {[%clk 0:01:12.6]} 42... Ke5 {[%clk 0:01:28.5]} 43.
Nf3+ {[%clk 0:01:05.6]} 43... Ke4 {[%clk 0:01:27.7]} 44. Ng5+ {[%clk 0:01:04.4]}
44... Ke5 {[%clk 0:01:24.5]} 45. Nf3+ {[%clk 0:00:59.1]} 45... Ke4 {[%clk
0:01:22.2]} 46. Ng5+ {[%clk 0:00:53]} 46... Ke5 {[%clk 0:01:20.1]} 47. Nf3+
{[%clk 0:00:45.4]} 1/2-1/2

[Event "Live Chess"]
[Site "Chess.com"]
[Date "2023.05.21"]
[Round "-"]
[White "nigelst"]
[Black "Brooms1989"]
[Result "1-0"]
[WhiteElo "1786"]
[BlackElo "1106"]
[TimeControl "300"]
[EndTime "16:55:35 PDT"]
[Termination "nigelst won by checkmate"]

1. e4 {[%clk 0:04:58.9]} 1... e5 {[%clk 0:04:57.5]} 2. Nf3 {[%clk 0:04:57.8]}
2... Nc6 {[%clk 0:04:56.2]} 3. Bb5 {[%clk 0:04:56.5]} 3... a6 {[%clk 0:04:55.4]}
4. Bxc6 {[%clk 0:04:55.5]} 4... dxc6 {[%clk 0:04:54.8]} 5. O-O {[%clk
0:04:54.7]} 5... Bd6 {[%clk 0:04:53.2]} 6. d4 {[%clk 0:04:52.6]} 6... Qf6 {[%clk
0:04:42.5]} 7. dxe5 {[%clk 0:04:50.5]} 7... Bxe5 {[%clk 0:04:40.2]} 8. Nxe5
{[%clk 0:04:49.5]} 8... Qxe5 {[%clk 0:04:39.4]} 9. f4 {[%clk 0:04:48.6]} 9...
Qc5+ {[%clk 0:04:34.9]} 10. Kh1 {[%clk 0:04:46.8]} 10... Ne7 {[%clk 0:04:33.1]}
11. Nc3 {[%clk 0:04:45.7]} 11... O-O {[%clk 0:04:31.6]} 12. Qe2 {[%clk
0:04:45.2]} 12... b6 {[%clk 0:04:25.3]} 13. Be3 {[%clk 0:04:44]} 13... Qd6
{[%clk 0:04:21.4]} 14. Rad1 {[%clk 0:04:39.3]} 14... Qb4 {[%clk 0:04:10.7]} 15.
Bc1 {[%clk 0:04:17.7]} 15... f5 {[%clk 0:03:52.8]} 16. e5 {[%clk 0:04:15.3]}
16... Be6 {[%clk 0:03:48.8]} 17. Rf3 {[%clk 0:04:12.1]} 17... Bf7 {[%clk
0:03:21.1]} 18. Rh3 {[%clk 0:04:01.7]} 18... Rad8 {[%clk 0:03:12.3]} 19. Rf1
{[%clk 0:03:55.5]} 19... Bc4 {[%clk 0:03:02.8]} 20. Qf2 {[%clk 0:03:50.1]} 20...
Bxf1 {[%clk 0:03:00]} 21. Qxf1 {[%clk 0:03:44.9]} 21... Nd5 {[%clk 0:02:41.4]}
22. Bd2 {[%clk 0:03:34.2]} 22... Nxc3 {[%clk 0:02:36.5]} 23. Bxc3 {[%clk
0:03:29.5]} 23... Qe4 {[%clk 0:02:31.6]} 24. Rg3 {[%clk 0:02:53]} 24... Qxf4
{[%clk 0:02:22.9]} 25. Qe1 {[%clk 0:02:41.3]} 25... Rd5 {[%clk 0:01:44.3]} 26.
e6 {[%clk 0:02:37.9]} 26... Qe4 {[%clk 0:01:31.1]} 27. Rxg7+ {[%clk 0:02:31.7]}
27... Kh8 {[%clk 0:01:24]} 28. Rg4+ {[%clk 0:02:05.1]} 28... Re5 {[%clk
0:01:02.8]} 29. Rxe4 {[%clk 0:02:01.6]} 29... fxe4 {[%clk 0:00:58.5]} 30. Bxe5+
{[%clk 0:01:59.6]} 30... Kg8 {[%clk 0:00:57.3]} 31. Qg3# {[%clk 0:01:54.3]} 1-0

[Event "Live Chess"]
[Site "Chess.com"]
[Date "2023.05.21"]
[Round "-"]
[White "chessfiction"]
[Black "Singapourfeuj"]
[Result "1-0"]
[WhiteElo "2332"]
[BlackElo "2194"]
[TimeControl "300"]
[EndTime "16:55:45 PDT"]
[Termination "chessfiction won by resignation"]

1. e4 {[%clk 0:04:59.8]} 1... c5 {[%clk 0:04:58]} 2. d4 {[%clk 0:04:59.7]} 2...
cxd4 {[%clk 0:04:57]} 3. c3 {[%clk 0:04:59.3]} 3... dxc3 {[%clk 0:04:56]} 4.
Nxc3 {[%clk 0:04:59.2]} 4... Nc6 {[%clk 0:04:55.3]} 5. Bg5 {[%clk 0:04:58.3]}
5... a6 {[%clk 0:04:52.5]} 6. Bc4 {[%clk 0:04:57.4]} 6... d6 {[%clk 0:04:50.7]}
7. Qb3 {[%clk 0:04:56.4]} 7... Nd4 {[%clk 0:04:23]} 8. Bxf7+ {[%clk 0:04:53.3]}
8... Kd7 {[%clk 0:04:22.1]} 9. Qa4+ {[%clk 0:04:51.4]} 9... b5 {[%clk
0:04:20.9]} 10. Qxd4 {[%clk 0:04:49.9]} 10... e5 {[%clk 0:04:16.4]} 11. Qd5
{[%clk 0:04:48]} 11... Qxg5 {[%clk 0:04:12.7]} 12. Qxa8 {[%clk 0:04:46.4]} 12...
Nh6 {[%clk 0:04:09.9]} 13. Qa7+ {[%clk 0:04:43.5]} 13... Kd8 {[%clk 0:04:08.2]}
14. Nd5 {[%clk 0:04:41.4]} 14... Nxf7 {[%clk 0:04:04.8]} 15. Qc7+ {[%clk
0:04:37.8]} 15... Ke8 {[%clk 0:04:03.8]} 16. Qxc8+ {[%clk 0:04:36.8]} 16... Nd8
{[%clk 0:04:03]} 17. Nb6 {[%clk 0:04:25.1]} 17... Be7 {[%clk 0:03:59.9]} 18.
Qd7+ {[%clk 0:04:23.4]} 18... Kf7 {[%clk 0:03:57.8]} 19. Nd5 {[%clk 0:04:22.5]}
19... Ne6 {[%clk 0:03:53.2]} 20. Nf3 {[%clk 0:04:20.3]} 20... Qxg2 {[%clk
0:03:41.2]} 21. Qxe7+ {[%clk 0:04:19.3]} 21... Kg6 {[%clk 0:03:40.2]} 22. Nh4+
{[%clk 0:04:16.6]} 22... Kh5 {[%clk 0:03:38.2]} 23. Nxg2 {[%clk 0:04:16.5]} 1-0